Cogmind - Beta 12 @@@ ROGUE MODE // 2023.03.13 @ 00:50:24 Player: Lunatic Blue Result: Destroyed by as-98342 with Assembled Heavy Rifle Performance ------------- Evolutions (1) 500 Regions Visited (5) 1000 Robots Destroyed (59) 295 Value Destroyed (1442) 1442 Prototype IDs (26) 520 Alien Tech Used (0) 0 Bonus (418) 418 TOTAL SCORE: 4175 Bonus ------- High Alert Combat Kills 118 Aligned with FarCom 300 Cogmind --------- Core Integrity 0/400 Matter 255/300 Energy 28/280 System Corruption 0% Temperature Cool (0) Movement Treading (480) Ox4 Location -9/Exiles Parts ------- > --- POWER (1) -------- Heavy Ion Engine > --- PROPULSION (3) --- Light Treads > --- UTILITY (3) ------ Cooling System Huge Storage Unit Trap Extractor (0/4) > --- WEAPON (2) ------- AWS/Thermal > --- INVENTORY (25) --- Light Ion Engine Structural Scanner Machine Analyzer Improved Terrain Scanner Transport Network Coupler Improved Utility Shielding Shield Generator Trap Extractor (0/4) Advanced Beam Cannon Advanced Beam Cannon Heavy Assault Rifle Flak Cannon Datajack Katana Peak State ------------ > --- POWER ------------ Heavy Ion Engine > --- PROPULSION ------- Light Treads > --- UTILITY ---------- Cooling System Huge Storage Unit Trap Extractor > --- WEAPON ----------- AWS/Thermal > --- INVENTORY -------- Light Ion Engine Structural Scanner Machine Analyzer Improved Terrain Scanner Transport Network Coupler Improved Utility Shielding Shield Generator Trap Extractor Advanced Beam Cannon Advanced Beam Cannon Heavy Assault Rifle Flak Cannon Datajack Katana [Rating: 28] Favorites ----------- Power Ion Engine Engine Ion Engine Propulsion Improved Treads Treads Improved Treads Leg Aluminum Leg Wheel Wheel Utility Huge Storage Unit Device Cooling System Storage Huge Storage Unit Processor Signal Interpreter Protection Improved Utility Shielding Weapon Light Assault Rifle Energy Gun Particle Gun Energy Cannon Advanced Beam Cannon Ballistic Gun Light Assault Rifle Slashing Weapon Mining Claw Special Melee Weapon Datajack Build | -11 -10 -10 -9 -9 -9 ------- Run | Jun Mat Min Mat Min Exi Slots Evolved 2 | . . . 2 . . Power . | . . . . . . Propulsion 1 | . . . 1 . . Utility 1 | . . . 1 . . Weapon . | . . . . . . Parts Attached 61 | . 35 1 21 . 4 Power 12 | . 5 1 5 . 1 Engine 12 | . 5 1 5 . 1 Core . | . . . . . . Reactor . | . . . . . . Propulsion 16 | . 9 . 6 . 1 Treads 7 | . 1 . 5 . 1 Leg 6 | . 6 . . . . Wheel 3 | . 2 . 1 . . Hover . | . . . . . . Flight . | . . . . . . Utility 14 | . 5 . 8 . 1 Device 7 | . 2 . 4 . 1 Storage 2 | . 2 . . . . Processor 1 | . 1 . . . . Hackware . | . . . . . . Protection 4 | . . . 4 . . Artifact . | . . . . . . Weapon 19 | . 16 . 2 . 1 Energy Gun 8 | . 7 . . . 1 Energy Cannon 1 | . . . 1 . . Ballistic Gun 8 | . 7 . 1 . . Ballistic Cannon . | . . . . . . Launcher . | . . . . . . Special Weapon . | . . . . . . Impact Weapon . | . . . . . . Slashing Weapon 1 | . 1 . . . . Piercing Weapon . | . . . . . . Special Melee Weapon 1 | . 1 . . . . Unidentified Prototypes 3 | . 1 . 2 . . Corrupted Parts 1 | . 1 . . . . System Corruption 3 | . 3 . . . . Parts Lost 22 | . 3 . 13 . 6 Power 4 | . . . 3 . 1 Propulsion 9 | . 1 . 5 . 3 Utility 4 | . . . 4 . . Weapon 5 | . 2 . 1 . 2 Highest Loss Streak 8 | . 1 . 8 . 6 To Critical Strikes 2 | . . . . . 2 Average Slot Usage (%) 95 | . 93 100 97 100 97 Engine 11 | . 12 14 10 11 10 Treads 17 | . 6 14 29 33 31 Leg 7 | . 14 . . . . Wheel 4 | . 6 14 2 . . Device 9 | . 6 14 13 11 11 Storage 12 | . 14 14 11 11 11 Processor 3 | . 6 . . . . Protection 4 | . . . 8 11 10 Energy Gun 4 | . 5 14 5 . . Energy Cannon 3 | . . . 5 11 10 Ballistic Gun 14 | . 18 14 10 11 10 Naked Turns . | . . . . . . Heaviest Build 100 | 10 89 89 100 99 100 Greatest Support 66 | 20 23 10 66 63 63 Greatest Overweight (x) 9 | . 9 8 8 1 4 Average Overweight (x) 2 | . 3 8 1 1 1 Largest Inventory Capacity 25 | . 25 25 25 25 25 Average Capacity 20 | . 16 25 25 25 25 Most Carried 21 | . 15 13 19 16 21 Average Carried 13 | . 12 11 13 16 19 Final Capacity 25 | 8 25 25 25 25 25 Final Carried 16 | 6 10 13 16 16 14 Class Distribution -------------------- 83% | Mutant 13% | Trapper-Mutant 3% | Scavenger-Mutant Dominant Class ---------------- Mutant | -10/Materials Mutant | -10/Mines Mutant | -9/Materials Mutant | -9/Mines Trapper-Mutant | -9/Exiles Resources | -11 -10 -10 -9 -9 -9 ----------- Run | Jun Mat Min Mat Min Exi Matter Collected 1199 | 193 468 128 410 . . Remotely . | . . . . . . Salvage Created 2113 | . 748 96 1241 . 28 Parts 137 | . 52 9 76 . . Haulers Intercepted 4 | . 1 . 3 . . Recyclers Shooed 1 | . . . 1 . . Parts Field Recycled . | . . . . . . Retrieved Matter . | . . . . . . Parts Self-Destructed . | . . . . . . Prevented . | . . . . . . Kills | -11 -10 -10 -9 -9 -9 ------- Run | Jun Mat Min Mat Min Exi Combat Hostiles Destroyed 44 | . 17 1 23 . 3 Guns 36 | . 17 1 18 . . Cannons 7 | . . . 5 . 2 AOE 1 | . . . . . 1 Classes Destroyed 12 | . 5 2 4 . 1 Worker 3 | . . . 3 . . Builder 3 | . . . 3 . . Tunneler 1 | . . 1 . . . Hauler 4 | . 1 . 3 . . Recycler 2 | . . 1 1 . . Operator 1 | . 1 . . . . Watcher 4 | . 2 . 2 . . Swarmer 9 | . 3 1 5 . . Grunt 23 | . 14 . 9 . . Duelist 2 | . . . 2 . . Sentry 7 | . . . 7 . . Assembled 3 | . . . . . 3 Best Kill Streak 13 | . 4 2 13 . 3 Combat Bots Only 6 | . 3 1 6 . 3 Max Kills in Single Turn 2 | . 1 1 2 . 1 Gunslinging . | . . . . . . Exploded 1 | . . . . . 1 Melee . | . . . . . . Uniques/NPCs Destroyed . | . . . . . . Combat | -11 -10 -10 -9 -9 -9 -------- Run | Jun Mat Min Mat Min Exi Damage Taken 3594 | . 1070 40 1590 . 894 Core 604 | . 178 15 281 . 130 Absorbed by Shields . | . . . . . . Redirected to Shielding 34 | . . . . . 34 Regen/Repaired (Parts) 33 | . 33 . . . . Core Remaining (%) 61 | 100 . 22 . . . Volleys Fired 185 | . 90 5 80 . 10 Largest 2 | . 2 2 2 . 2 Hottest 91 | . 85 85 91 . 91 Shots Fired 363 | . 175 10 159 . 19 Gun 326 | . 175 10 131 . 10 Cannon 37 | . . . 28 . 9 Launcher . | . . . . . . Special . | . . . . . . Kinetic 219 | . 125 5 79 . 10 Thermal 132 | . 38 5 80 . 9 Explosive . | . . . . . . Electromagnetic 12 | . 12 . . . . Robot Hit Streak 15 | . 12 5 15 . 4 Robot Miss Streak 5 | . 4 2 5 . 2 Penetration Max . | . . . . . . Secondary Targets 3 | . 2 . 1 . . Max Gunslinging Chain 1 | . 1 . 1 . . Shots Hit Robots 231 | . 117 7 99 . 8 Core Hits 104 | . 47 3 51 . 3 Critical Kills . | . . . . . . Critical Parts Destroyed 1 | . 1 . . . . Critical Strikes 3 | . 1 1 1 . . Burn 2 | . . 1 1 . . Destroy 1 | . 1 . . . . Melee Attacks 11 | . 11 . . . . Impact . | . . . . . . Slashing 8 | . 8 . . . . Piercing . | . . . . . . Sneak Attacks 3 | . 3 . . . . Combat Hostiles . | . . . . . . Follow-up Attacks . | . . . . . . Damage Inflicted 3321 | . 1242 102 1837 . 140 Guns 2753 | . 1166 102 1428 . 57 Cannons 492 | . . . 409 . 83 Explosions . | . . . . . . Melee 63 | . 63 . . . . Ramming 13 | . 13 . . . . Kinetic 1787 | . 774 69 887 . 57 Thermal 1382 | . 316 33 950 . 83 Explosive . | . . . . . . Electromagnetic 76 | . 76 . . . . Impact . | . . . . . . Slashing 63 | . 63 . . . . Piercing . | . . . . . . Highest Corruption 3 | . 3 3 . . . Average Corruption 3 | . 3 3 . . . Corruption Purged . | . . . . . . Corruption Blocked . | . . . . . . Effects 10 | . 8 2 . . . Message Errors 1 | . 1 . . . . Matter Fused 3 | . 2 1 . . . Heat Flow Errors 3 | . 2 1 . . . Data Loss (minor) 1 | . 1 . . . . Data Loss (major) 2 | . 2 . . . . Overload Shots . | . . . . . . Overflow Damage 37 | . 23 . . . 14 Projectiles 14 | . . . . . 14 Explosions . | . . . . . . Melee 23 | . 23 . . . . Knockbacks . | . . . . . . Impact . | . . . . . . Kinetic . | . . . . . . Secondary . | . . . . . . Self-Inflicted Damage . | . . . . . . Shots . | . . . . . . Rammed 2 | . 2 . . . . Targets Rammed 2 | . 2 . . . . Kicked . | . . . . . . Crushed . | . . . . . . Highest Temperature 354 | . 354 130 316 . 6 Average Temperature 80 | . 79 70 83 . 6 Received Heat Transfer 1070 | . 519 . 471 . 80 Siege Activations . | . . . . . . Robots Corrupted . | . . . . . . Combat Hostiles . | . . . . . . Parts Fried . | . . . . . . Impact Corruptions . | . . . . . . Robots Melted . | . . . . . . Combat Hostiles . | . . . . . . Parts Melted 5 | . 1 1 3 . . Heat Transferred 3198 | . 756 148 2146 . 148 Parts Sabotaged . | . . . . . . Parts Stolen . | . . . . . . Parts Stripped . | . . . . . . Power Chain Reactions . | . . . . . . Missiles Intercepted . | . . . . . . Alert | -11 -10 -10 -9 -9 -9 ------- Run | Jun Mat Min Mat Min Exi Peak Influence 591 | . 219 119 591 191 . Initial 191 | . . 49 46 191 . Average 203 | . 105 106 433 191 . Maximum Alert Level 2 | . 1 . 2 . . Low Security (%) 73 | . 98 100 12 100 . Level 1 3 | . 1 . 9 . . Level 2 22 | . . . 78 . . Level 3 . | . . . . . . Level 4 . | . . . . . . Level 5 . | . . . . . . High Security . | . . . . . . Max Security . | . . . . . . Squads Dispatched 8 | . 6 . 2 . . Investigation 4 | . 3 . 1 . . Extermination . | . . . . . . Reinforcement 3 | . 3 . . . . Assault 1 | . . . 1 . . Garrison . | . . . . . . Intercept . | . . . . . . Searches Triggered . | . . . . . . Construction Impeded . | . . . . . . Haulers Reinforced . | . . . . . . Active Scanning Responses . | . . . . . . Cargo Convoy Interrupts . | . . . . . . Stealth | -11 -10 -10 -9 -9 -9 --------- Run | Jun Mat Min Mat Min Exi Distress Signals 8 | . 4 . 4 . . Communications Jammed . | . . . . . . Distress Signals . | . . . . . . Times Spotted 85 | . 36 2 40 . 7 Peak Tracking Total 12 | . 4 3 12 . 9 Tactical Retreats 8 | . 3 1 4 . . Traps | -11 -10 -10 -9 -9 -9 ------- Run | Jun Mat Min Mat Min Exi Traps Triggered 7 | . 6 . 1 . . Indirectly . | . . . . . . Trap Hack Attempts 36 | . 36 . . . . Triggered . | . . . . . . Disarmed . | . . . . . . Reprogrammed 4 | . 4 . . . . Reused 3 | . . . . . 3 Traps Extracted 5 | . 4 . . . 1 Installed 4 | . . . . . 4 Triggered 1 | . 1 . . . . Most Traps Carried 4 | . 4 4 4 4 4 Exploded 3 | . . . . . 3 Machines | -11 -10 -10 -9 -9 -9 ---------- Run | Jun Mat Min Mat Min Exi Machines Disabled 3 | . . . 1 . 2 Max in Single Turn 1 | . . . 1 . 1 Machines Repaired . | . . . . . . Machines Sabotaged . | . . . . . . Overloaded Fab Kills . | . . . . . . Hacking | -11 -10 -10 -9 -9 -9 --------- Run | Jun Mat Min Mat Min Exi Machines Accessed 10 | . 6 . 2 . 2 Terminals 4 | . 3 . 1 . . Fabricators . | . . . . . . Repair Stations 1 | . 1 . . . . Recycling Units 3 | . 2 . 1 . . Scanalyzers . | . . . . . . Garrison Access . | . . . . . . Total Hacks 26 | . 14 . 10 . 2 Successful 9 | . 4 . 3 . 2 Failed 17 | . 10 . 7 . . Catastrophic 4 | . 3 . 1 . . Database Lockouts . | . . . . . . Manual 15 | . 8 . 6 . 1 Terminals 12 | . 7 . 5 . . Fabricators . | . . . . . . Repair Stations 2 | . 2 . . . . Recycling Units 10 | . 5 . 5 . . Scanalyzers . | . . . . . . Garrison Access . | . . . . . . Terminal Hacks 4 | . . . 2 . 2 Record 1 | . . . . . 1 Branch Access Points 1 | . . . 1 . . Zone Layout 1 | . . . 1 . . EX-Prototype ID Bank 1 | . . . . . 1 Fabricator Hacks . | . . . . . . Repair Station Hacks 2 | . 2 . . . . Scan Component 1 | . 1 . . . . Repair 1 | . 1 . . . . Recycling Unit Hacks . | . . . . . . Scanalyzer . | . . . . . . Garrison Access Hacks . | . . . . . . Unauthorized Hacks 3 | . 2 . 1 . . Terminals 2 | . 1 . 1 . . Operators 2 | . 1 . 1 . . Fabricators . | . . . . . . Repair Stations . | . . . . . . Recycling Units 1 | . 1 . . . . Tunnel 1 | . 1 . . . . Scanalyzers . | . . . . . . Garrison Access . | . . . . . . Data Cores Recovered . | . . . . . . Used . | . . . . . . Hacking Detections 6 | . 4 . 2 . . Full Trace Events 2 | . 1 . 1 . . Feedback Events . | . . . . . . Feedback Blocked . | . . . . . . Robot Schematics Acquired . | . . . . . . Robots Built . | . . . . . . Authchips . | . . . . . . Time . | . . . . . . Total Robot Build Rating . | . . . . . . Part Schematics Acquired . | . . . . . . Parts Built . | . . . . . . Authchips . | . . . . . . Time . | . . . . . . Total Part Build Rating . | . . . . . . Parts Repaired 1 | . 1 . . . . Time 26 | . 26 . . . . Parts Recycled . | . . . . . . Recycled Matter . | . . . . . . Retrieved Matter . | . . . . . . Retrieved Components . | . . . . . . Parts Scanalyzed . | . . . . . . Part Schematics Acquired . | . . . . . . Parts Damaged . | . . . . . . Bothacking | -11 -10 -10 -9 -9 -9 ------------ Run | Jun Mat Min Mat Min Exi Used RIF Installer . | . . . . . . Robots Hacked 2 | . 2 . . . . Non-combat 2 | . 2 . . . . Combat . | . . . . . . Robot Hacks Applied 2 | . 2 . . . . parse_system 2 | . 2 . . . . Relay Couplers Released . | . . . . . . Fabnet Peak Effective % . | . . . . . . Robots Rewired . | . . . . . . Allies Hacked . | . . . . . . Hacks Repelled . | . . . . . . Allies | -11 -10 -10 -9 -9 -9 -------- Run | Jun Mat Min Mat Min Exi Total Allies . | . . . . . . Largest Group . | . . . . . . Highest-Rated Group . | . . . . . . Highest-Rated Ally . | . . . . . . Total Orders . | . . . . . . Ally Attacks . | . . . . . . Total Damage . | . . . . . . Kills . | . . . . . . Allies Corrupted . | . . . . . . Allies Melted . | . . . . . . Intel | -11 -10 -10 -9 -9 -9 ------- Run | Jun Mat Min Mat Min Exi Robot Analysis Total . | . . . . . . Derelict Logs Recovered 1 | . . 1 . . . Drone Launches . | . . . . . . Drone Recoveries . | . . . . . . Exploration | -11 -10 -10 -9 -9 -9 ------------- Run | Jun Mat Min Mat Min Exi Turns Passed 3791 | . 1908 191 898 82 712 Spaces Moved 1501 | 1 838 87 268 35 272 Core 1 | . 1 . . . . Treads 541 | . 1 . 233 35 272 Legs 400 | 1 399 . . . . Wheels 559 | . 437 87 35 . . Hover . | . . . . . . Flight . | . . . . . . Fastest Speed 110 | 120 110 200 140 240 240 Average Speed 196 | 120 168 200 228 240 245 Slowest Speed 500 | 120 500 200 480 240 480 Overloaded Moves . | . . . . . . Propulsion Burnouts . | . . . . . . Robots Hopped . | . . . . . . Cave-ins Triggered . | . . . . . . Exploration Rate (%) 35 | 2 92 28 26 9 58 Regions Visited 5 Branch Regions 3 Pre-discovered Areas 2 | . 1 . . . 1 Known Exits Taken 1 | . . . 1 . . Unknown Exits Taken 4 | 1 1 1 . 1 . Scrap Searched 2 | . . 2 . . . Spaces Dug 3 | . 3 . . . . Terrain Destroyed 3 | . 3 . . . . Melee 3 | . 3 . . . . Projectile . | . . . . . . AOE . | . . . . . . Terrain Rammed . | . . . . . . Walls Destroyed . | . . . . . . Machines Disabled . | . . . . . . Actions | -11 -10 -10 -9 -9 -9 --------- Run | Jun Mat Min Mat Min Exi Total 1979 | . 1159 94 393 34 299 Wait 104 | . 94 . 8 . 2 Move 1496 | . 837 86 267 34 272 Hop . | . . . . . . Pick Up 49 | . 29 2 14 . 4 Fast Attach 19 | . 14 . 5 . . Attach 23 | . 8 . 12 . 3 Detach 2 | . 2 . . . . Swap 19 | . 13 1 4 . 1 Drop 29 | . 23 . 3 . 3 Fire 185 | . 90 5 80 . 10 Melee 11 | . 11 . . . . Ram . | . . . . . . Kick . | . . . . . . Crush 2 | . 2 . . . . Escape Stasis . | . . . . . . Rewire . | . . . . . . Trap 40 | . 36 . . . 4 Miscellaneous . | . . . . . . Route ------- -11/Junkyard -10/Materials (discovered 4 exits: *Mat x3 / [*Min]) -10/Mines -9/Materials -9/Mines (discovered 2 exits: *Exi / [*Zio]) -9/Exiles (discovered 1 exit: [*Min]) History --------- Turn | Location | Event 1 | -11/Junkyard | Discovered new exit (range 0) 1 | -11/Junkyard | Entered Materials 331 | -10/Materials | Build established: Mutant 618 | -10/Materials | Discovered new exit (range 13) 737 | -10/Materials | Discovered new exit (range 16) 932 | -10/Materials | Core integrity fell below 50% 1248 | -10/Materials | Repaired Wheel 1438 | -10/Materials | Discovered new exit (range 14) 1855 | -10/Materials | Discovered new exit (range 16) 1909 | -10/Materials | Entered Mines 2084 | -10/Mines | Discovered new exit (range 9) 2100 | -10/Mines | Entered Materials 2100 | -9/Materials | Evolved 2 slots: Propulsion x1, Utility x1 2148 | -9/Materials | Identified exit to Mines 2270 | -9/Materials | Lost 8 parts (2p3n2u1w) 2627 | -9/Materials | Core integrity fell below 50% 2900 | -9/Materials | First assault squad dispatched 2996 | -9/Materials | Lost 3 parts (2n1u) 2998 | -9/Materials | Entered Mines 2999 | -9/Mines | A Derelict revealed a hidden shortcut to a safe place 3022 | -9/Mines | Met a Derelict bent on vengeance 3068 | -9/Mines | Deemed a non-threat by the Exiles lab entrance 3070 | -9/Mines | Discovered new exit (range 5) 3080 | -9/Mines | Entered Exiles 3116 | -9/Exiles | Discovered new exit (range 15) 3138 | -9/Exiles | Met 8R-AWN 3263 | -9/Exiles | Met EX-HEX 3333 | -9/Exiles | Met EX-BIN 3359 | -9/Exiles | Aligned with FarCom system 3362 | -9/Exiles | Given EX-Vault access code 3424 | -9/Exiles | Opened EX-Vault 3472 | -9/Exiles | Found AWS/Thermal 3490 | -9/Exiles | Build established: Trapper-Mutant 3521 | -9/Exiles | Warned to stay clear of 0b10 Research branches 3593 | -9/Exiles | Met EX-DEC 3610 | -9/Exiles | Learned location of Zion (-7) 3700 | -9/Exiles | Attacked by the Exiles 3760 | -9/Exiles | Core integrity fell below 20% 3792 | -9/Exiles | Destroyed by as-98342 with Assembled Heavy Rifle Last Messages --------------- 03767_ Trap Extractor dropped Blade Trap. 03767_ Penetrated by HV Slug. 03767_ Critical hit (Destroy). 03767_ Adv. Beam Cannon destroyed. 03767_ HV Slug penetrates Wall. 03768_ Trap Extractor dropped Blade Trap. 03770_ Penetrated by HV Slug. 03770_ Lgt. Treads destroyed. 03770_ Installed Blade Trap. 03774_ Penetrated by HV Slug. 03776_ HV Slug penetrates Wall. 03776_ Penetrated by HV Slug. 03776_ Installed Blade Trap. 03784_ as-98342 triggered Blade Trap. 03784_ Massive razor-sharp blades shoot up from within the floor. 03785_ as-98342 triggered Blade Trap. 03785_ Massive razor-sharp blades shoot up from within the floor. 03785_ as-98342 triggered Blade Trap. 03785_ Massive razor-sharp blades shoot up from within the floor. 03788_ Machine disabled. Map ----- +----------------------------------------------------+ | ?????????????????????????????????????????????????? | | ?????????????????????????????????????????????????? | | ?????????????????????????????????????????????????? | | ?????????????????????????????????????????????????? | | ?????????????????????????????????????????????????? | | ?????????????????????????????????????????????????? | | ?????????????????????????????????????????????????? | | ?????????????????????????????????????????????????? | | ?????????????????????????????????????????????????? | | ?????????????????????????????????????????????????? | | ?????????????????????????????????????????????????? | | ?????????????????????????????#######?????????????? | | ??????????????? ######???????#!!! "#?????????????? | | ??????????????? #""#??????# "#?????????????? | | ??????????????? ??????# "#?????????????? | | ??????????????? #????## ""#?????????????# | | ??????????????? #####" ""#???????????? | | ??????????????? ##" ""?????????????" | | ???????????????? #"" #??????????????" | | ??????????????????# #?????????????"" | | ?????????????????????# ##????????????"" | | ??????????????????????## "###??????????? | | ???????????????########" & ""#???????????" | | ???????????????# !!""""" aa ##??????????# | | ???????????????#! ### % ""####???### | | ???????????????#! @"#?## % #####X# | | ???????????????#! ##??# % | | ???????????????# !""""""###???# # %% | | ???????????????#########??????#### | | ?????????????????????????????????### | | ???????????????????????????????????### | | ?????????????????????????????????????## | | ??????????????????????????????????????## | | ???????????????????????????????????????## | | ????????????????????????????????????????#""" | | ????????????????????????????????????????#" | | ????????????????????????????????????????"" | | ????????????????????????????????????????""" | | ????????????????????????????????????????"" | | ?????????????????????????????????????????" | | ????????????????????????????????????????" | | ????????????????????????????????????????"" | | ????????????????????????????????????????? | | ?????????????????????????????????????????? | | ???????????????????????????????????????????" | | ????????????????????????????????????????????? | | ??????????????????????????????????????????????? | | ?????????????????????????????????????????????????? | | ?????????????????????????????????????????????????? | | ?????????????????????????????????????????????????? | +----------------------------------------------------+ Best States ------------- Heat Dissipation 50 Energy Generation 14 Energy Capacity 280 Matter Stores 300 Matter Capacity 300 Sight Range 16 Terrain Scan Range 16 Terrain Scan Density 10 Armor Coverage 225 Utility Shielding 66 Evasion (%) 55 Recoil Reduction 3 Trap Extractor Capacity 4 Item Schematics ----------------- None Robot Schematics ------------------ None Fabricated ------------ Nothing Alien Tech Used ----------------- None Achievements -------------- None Challenges ------------ None Game ------ Seed LayeredSalvageHumpback Manual? 0 Play Time 00:24:06 Cumulative 234.6 hours Start 2023.03.13 @ 00:29:09 End 2023.03.13 @ 00:50:24 Sessions 1 Manual Loads 0 Difficulty Rogue Special Mode None Game No. 301 Rogue 301 Adventurer 0 Explorer 0 Win Type - Total 6 Types 1/1/3/0/0/0/1/0/0 Lore% 80 Gallery% 86 Achievement% 67 Wizard Run 0 Options --------- ASCII 0 Keyboard 0 Movement Mouse Keybinds 0 Fullscreen 1 Font 18/SmallcapsGlow Map View 76x50 Tactical HUD 1 Map Filters NONE Filters NONE Steam 1 RUN: 95ef6e2a-9a34-4f9d-b813-d0fca9882d03